Cogmind - Beta 16.1 @@@ ROGUE MODE // 2026.03.14 @ 09:26:11 Player: osman sinnoks Result: Destroyed by ON-WAF(p) with EM Pulse Gun Performance ------------- Evolutions (0) 0 Regions Visited (4) 800 Robots Destroyed (5) 25 Value Destroyed (111) 111 Prototype IDs (0) 0 Alien Tech Used (0) 0 Bonus (800) 800 TOTAL SCORE: 1736 Bonus ------- Registered with UFD 300 Met Optimus in HQ 500 Cogmind --------- Core Integrity 0/250 Matter 300/300 Energy 246/290 System Corruption 0% Temperature Cool (0) Movement Walking (120) Location -8/Scraptown Parts ------- > --- POWER (1) -------- Improved Deuterium Engine > --- PROPULSION (2) --- Armored Leg > --- UTILITY (2) ------ Small Storage Unit Seismic Detector > --- WEAPON (2) ------- (None) > --- INVENTORY (8) ---- Xenon Bombardment Thruster Scrap Suit High-capacity Matter Pod (200) Hardened Medium Armor Plating Makeshift Hacking Suite Heavy Hammer Botcube Peak State ------------ > --- POWER ------------ Improved Deuterium Engine > --- PROPULSION ------- Overtuned Titanium Leg Armored Leg > --- UTILITY ---------- Small Storage Unit Seismic Detector > --- WEAPON ----------- Flak Cannon > --- INVENTORY -------- Xenon Bombardment Thruster Scrap Suit High-capacity Matter Pod Hardened Medium Armor Plating Makeshift Hacking Suite Heavy Hammer Botcube [Rating: 20] Favorites ----------- Power Light Ion Engine Engine Light Ion Engine Propulsion Aluminum Leg Leg Aluminum Leg Utility Small Storage Unit Device Seismic Detector Storage Small Storage Unit Weapon Assault Rifle Energy Gun Particle Gun Ballistic Gun Assault Rifle Ballistic Cannon Flak Cannon Launcher Mini Grenade Launcher Build | -11 -10 -10 -10 -8 ------- Run | Yrd Mat Min Sub Scr Slots Evolved . | . . . . . Power . | . . . . . Propulsion . | . . . . . Utility . | . . . . . Weapon . | . . . . . Parts Attached 15 | 7 1 . . 7 Power 2 | 1 . . . 1 Engine 2 | 1 . . . 1 Core . | . . . . . Reactor . | . . . . . Propulsion 6 | 2 . . . 4 Treads . | . . . . . Leg 6 | 2 . . . 4 Wheel . | . . . . . Hover . | . . . . . Flight . | . . . . . Utility 2 | 2 . . . . Device 1 | 1 . . . . Storage 1 | 1 . . . . Processor . | . . . . . Hackware . | . . . . . Protection . | . . . . . Artifact . | . . . . . Weapon 5 | 2 1 . . 2 Energy Gun 1 | . 1 . . . Energy Cannon . | . . . . . Ballistic Gun 2 | 2 . . . . Ballistic Cannon 1 | . . . . 1 Launcher 1 | . . . . 1 Special Weapon . | . . . . . Impact Weapon . | . . . . . Slashing Weapon . | . . . . . Piercing Weapon . | . . . . . Special Melee Weapon . | . . . . . Unidentified Prototypes . | . . . . . Parts Lost 4 | . . . . 4 Power 1 | . . . . 1 Propulsion 1 | . . . . 1 Utility . | . . . . . Weapon 2 | . . . . 2 Highest Loss Streak 4 | . . . . 4 To Critical Strikes . | . . . . . Average Backups 7 | 1 5 8 8 7 Power . | . . . . . Propulsion 1 | . 1 2 2 1 Utility 3 | . 1 2 2 4 Weapon 1 | . 2 3 3 1 Tool/Special . | . . . . . Unused Backups 17 | . . 1 . 16 Power . | . . . . . Propulsion 3 | . . . . 3 Utility 9 | . . 1 . 8 Weapon 4 | . . . . 4 Tool/Special 1 | . . . . 1 Average Slot Usage (%) 99 | . 100 100 100 99 Engine 14 | . 14 14 14 14 Leg 28 | . 28 28 28 28 Device 14 | . 14 14 14 14 Storage 14 | . 14 14 14 14 Energy Gun 6 | . 10 14 14 4 Ballistic Gun 8 | . 17 14 14 6 Ballistic Cannon 7 | . . . . 9 Launcher 6 | . . . . 7 Peak Build Rating 20 | 7 8 8 8 20 Average Rating 13 | 4 7 8 8 14 On Entrance 6 | . 7 8 8 8 Avg Prop Armor Cover (%) 8 | . . . . 8 Naked Turns . | . . . . . Heaviest Build 22 | 12 14 14 14 22 Greatest Support 35 | 20 20 20 20 35 Greatest Overweight (x) 1 | . . . . 1 Average Overweight (x) . | . . . . . Largest Inventory Capacity 8 | 8 8 8 8 8 Average Capacity 7 | 7 8 8 8 8 Most Carried 8 | 3 8 8 8 8 Average Carried 7 | 1 5 7 8 7 Final Capacity 8 | 8 8 8 8 8 Final Carried 8 | 1 8 8 8 8 Class Distribution -------------------- 100% | Mutant Dominant Class ---------------- Mutant | -10/Materials Mutant | -10/Mines Mutant | -10/Subcaves Mutant | -8/Scraptown Resources | -11 -10 -10 -10 -8 ----------- Run | Yrd Mat Min Sub Scr Matter Collected 453 | 261 117 . . 75 Remotely . | . . . . . Salvage Created 148 | 31 117 . . . Parts 12 | 7 5 . . . Haulers Intercepted . | . . . . . Recyclers Shooed 1 | 1 . . . . Parts Field Recycled . | . . . . . Retrieved Matter . | . . . . . Parts Self-Destructed 6 | . . . 6 . Prevented . | . . . . . Parts Restored . | . . . . . Kills | -11 -10 -10 -10 -8 ------- Run | Yrd Mat Min Sub Scr Combat Hostiles Destroyed 2 | . 2 . . . Guns 2 | . 2 . . . Classes Destroyed 3 | 1 2 . . . Tunneler 2 | 2 . . . . Watcher 1 | . 1 . . . Grunt 2 | . 2 . . . Best Kill Streak 1 | 1 1 . . . Combat Bots Only 1 | . 1 . . . Max Kills in Single Turn 1 | 1 1 . . . Gunslinging . | . . . . . Exploded . | . . . . . Melee . | . . . . . Uniques/NPCs Destroyed . | . . . . . Combat | -11 -10 -10 -10 -8 -------- Run | Yrd Mat Min Sub Scr Hostile Shots Fired 69 | . 16 . . 53 Missed 24 | . 5 . . 19 Hits 45 | . 11 . . 34 Melee 5 | . . . . 5 Projectile 40 | . 11 . . 29 Critical Strikes 3 | . 1 . . 2 Damage Taken 842 | . 158 . . 684 Core 258 | . 18 . . 240 Absorbed by Shields . | . . . . . Core Remaining (%) 100 | 100 . . . . Volleys Fired 25 | 7 18 . . . Largest 2 | 2 2 . . . Hottest 85 | 40 85 . . . Shots Fired 50 | 14 36 . . . Gun 50 | 14 36 . . . Cannon . | . . . . . Launcher . | . . . . . Special . | . . . . . Kinetic 42 | 14 28 . . . Thermal 8 | . 8 . . . Explosive . | . . . . . Electromagnetic . | . . . . . Robot Hit Streak 14 | 4 14 . . . Robot Miss Streak 5 | 3 5 . . . Penetration Max . | . . . . . Secondary Targets . | . . . . . Shots Hit Robots 32 | 8 24 . . . Core Hits 8 | 2 6 . . . Critical Kills . | . . . . . Critical Parts Destroyed 1 | . 1 . . . Critical Strikes 2 | . 2 . . . Burn 1 | . 1 . . . Destroy 1 | . 1 . . . Melee Attacks . | . . . . . Impact . | . . . . . Slashing . | . . . . . Piercing . | . . . . . Sneak Attacks . | . . . . . Combat Hostiles . | . . . . . Follow-up Attacks . | . . . . . Damage Inflicted 361 | 83 278 . . . Guns 361 | 83 278 . . . Cannons . | . . . . . Explosions . | . . . . . Melee . | . . . . . Ramming . | . . . . . Kinetic 317 | 83 234 . . . Thermal 44 | . 44 . . . Explosive . | . . . . . Electromagnetic . | . . . . . Impact . | . . . . . Slashing . | . . . . . Piercing . | . . . . . Highest Corruption . | . . . . . Average Corruption . | . . . . . Corruption Purged . | . . . . . Corruption Blocked . | . . . . . Overload Shots . | . . . . . Overflow Damage . | . . . . . Projectiles . | . . . . . Explosions . | . . . . . Melee . | . . . . . Knockbacks . | . . . . . Impact . | . . . . . Kinetic . | . . . . . Secondary . | . . . . . Self-Inflicted Damage . | . . . . . Shots . | . . . . . Rammed . | . . . . . Targets Rammed . | . . . . . Kicked . | . . . . . Crushed . | . . . . . Highest Temperature 72 | . 72 . . 19 Average Temperature 24 | . 24 . . 10 Received Heat Transfer 316 | . 111 . . 205 Siege Activations . | . . . . . Martial Activations . | . . . . . Shielding Activations . | . . . . . Robots Disrupted . | . . . . . Combat Hostiles . | . . . . . Robots Corrupted . | . . . . . Combat Hostiles . | . . . . . Parts Fried . | . . . . . Impact Corruptions . | . . . . . Robots Melted . | . . . . . Combat Hostiles . | . . . . . Parts Melted 1 | . 1 . . . Heat Transferred 185 | . 185 . . . Parts Sabotaged . | . . . . . Parts Stolen . | . . . . . Parts Stripped . | . . . . . Power Chain Reactions . | . . . . . Alert | -11 -10 -10 -10 -8 ------- Run | Yrd Mat Min Sub Scr Maximum Alert Level . | . . . . . Low Security (%) 100 | 100 100 100 . . Level 1 . | . . . . . Level 2 . | . . . . . Level 3 . | . . . . . Level 4 . | . . . . . Level 5 . | . . . . . High Security . | . . . . . Max Security . | . . . . . Peak Influence 56 | 5 56 7 . . Initial 7 | . . 7 . . Average 8 | 1 11 1 . . Influence Increases 113 | 10 103 . . . Destroy 0b10 Robot/C 40 | . 40 . . . Destroy 0b10 Robot/NC 15 | 10 5 . . . Destroy Leader 12 | . 12 . . . Destroy Structure 1 | . 1 . . . Lose Combat Pursuer 45 | . 45 . . . Influence Decreases 113 | 10 83 20 . . Entered New Map 13 | . . 13 . . Time Decay 100 | 10 83 7 . . Squads Dispatched . | . . . . . Investigation . | . . . . . Extermination . | . . . . . Reinforcement . | . . . . . Assault . | . . . . . Garrison . | . . . . . Intercept . | . . . . . Searches Triggered . | . . . . . Construction Impeded . | . . . . . Haulers Reinforced . | . . . . . Active Scanning Responses . | . . . . . Cargo Convoy Interrupts . | . . . . . Stealth | -11 -10 -10 -10 -8 --------- Run | Yrd Mat Min Sub Scr Distress Signals 1 | . 1 . . . Communications Jammed . | . . . . . Distress Signals . | . . . . . Times Spotted 25 | . 8 . . 17 Peak Tracking Total 9 | . 2 . . 9 Tactical Retreats 3 | . 2 . . 1 Traps | -11 -10 -10 -10 -8 ------- Run | Yrd Mat Min Sub Scr Traps Triggered . | . . . . . Indirectly . | . . . . . Trap Hack Attempts . | . . . . . Triggered . | . . . . . Disarmed . | . . . . . Reprogrammed . | . . . . . Reused . | . . . . . Traps Extracted . | . . . . . Installed . | . . . . . Triggered . | . . . . . Machines | -11 -10 -10 -10 -8 ---------- Run | Yrd Mat Min Sub Scr Machines Disabled . | . . . . . Max in Single Turn . | . . . . . Machines Repaired . | . . . . . Machines Dismantled . | . . . . . Machines Sabotaged . | . . . . . Overloaded Fab Kills . | . . . . . Hacking | -11 -10 -10 -10 -8 --------- Run | Yrd Mat Min Sub Scr Machines Accessed 9 | . 2 . . 7 Terminals 2 | . 2 . . . Fabricators . | . . . . . Repair Stations . | . . . . . Recycling Units . | . . . . . Scanalyzers . | . . . . . Garrison Access . | . . . . . Total Hacks 68 | . 6 . . 62 Successful 62 | . . . . 62 Failed 6 | . 6 . . . Catastrophic . | . . . . . Database Lockouts . | . . . . . Manual 6 | . 6 . . . Terminals 6 | . 6 . . . Fabricators . | . . . . . Repair Stations . | . . . . . Recycling Units . | . . . . . Scanalyzers . | . . . . . Garrison Access . | . . . . . Terminal Hacks 62 | . . . . 62 Record 62 | . . . . 62 Fabricator Hacks . | . . . . . Repair Station Hacks . | . . . . . Recycling Unit Hacks . | . . . . . Scanalyzer . | . . . . . Garrison Access Hacks . | . . . . . Unauthorized Hacks . | . . . . . Terminals . | . . . . . Fabricators . | . . . . . Repair Stations . | . . . . . Recycling Units . | . . . . . Scanalyzers . | . . . . . Garrison Access . | . . . . . Data Cores Recovered . | . . . . . Used . | . . . . . Hacking Detections 2 | . 2 . . . Full Trace Events . | . . . . . Feedback Events . | . . . . . Feedback Blocked . | . . . . . Robot Schematics Acquired . | . . . . . Robots Built . | . . . . . Authchips . | . . . . . Time . | . . . . . Total Robot Build Rating . | . . . . . Part Schematics Acquired . | . . . . . Parts Built . | . . . . . Authchips . | . . . . . Time . | . . . . . Total Part Build Rating . | . . . . . Part Studies Acquired . | . . . . . Parts Repaired . | . . . . . Time . | . . . . . Parts Recycled . | . . . . . Recycled Matter . | . . . . . Retrieved Matter . | . . . . . Retrieved Components . | . . . . . Parts Scanalyzed . | . . . . . Part Schematics Acquired . | . . . . . Parts Damaged . | . . . . . Bothacking | -11 -10 -10 -10 -8 ------------ Run | Yrd Mat Min Sub Scr Used RIF Installer . | . . . . . Robots Hacked . | . . . . . Non-combat . | . . . . . Combat . | . . . . . Robot Hacks Applied . | . . . . . Relay Couplers Released . | . . . . . Fabnet Peak Effective % . | . . . . . Robots Rewired . | . . . . . Allies Hacked . | . . . . . Hacks Repelled . | . . . . . Allies | -11 -10 -10 -10 -8 -------- Run | Yrd Mat Min Sub Scr Total Allies . | . . . . . Largest Group . | . . . . . Highest-Rated Group . | . . . . . Highest-Rated Ally . | . . . . . Total Orders . | . . . . . Ally Attacks . | . . . . . Total Damage . | . . . . . Kills . | . . . . . Allies Corrupted . | . . . . . Allies Melted 2 | . . . . 2 Intel | -11 -10 -10 -10 -8 ------- Run | Yrd Mat Min Sub Scr Active Infowar (turns) 2328 | 6 353 70 82 1817 Seismic 2328 | 6 353 70 82 1817 Robot Analysis Total . | . . . . . Derelict Logs Recovered 1 | . . . 1 . Drone Launches . | . . . . . Drone Recoveries . | . . . . . Exploration | -11 -10 -10 -10 -8 ------------- Run | Yrd Mat Min Sub Scr Turns Passed 2416 | 93 353 70 82 1818 Spaces Moved 1847 | 59 231 58 59 1440 Core 17 | 17 . . . . Treads . | . . . . . Legs 1830 | 42 231 58 59 1440 Wheels . | . . . . . Hover . | . . . . . Flight . | . . . . . Fastest Speed 50 | 50 120 120 120 110 Average Speed 121 | 99 120 120 120 123 Slowest Speed 190 | 120 120 120 120 190 Overloaded Moves . | . . . . . Propulsion Burnouts . | . . . . . Robots Hopped . | . . . . . Potential Cave-ins 1 | . . . . 1 Cave-ins Triggered . | . . . . . Exploration Rate (%) 24 | 4 23 10 5 81 Regions Visited 4 Branch Regions 3 Pre-discovered Areas . | . . . . . Known Exits Taken . | . . . . . Unknown Exits Taken 4 | 1 1 1 1 . Scrap Searched 5 | . . . . 5 Spaces Dug . | . . . . . Terrain Destroyed . | . . . . . Melee . | . . . . . Projectile . | . . . . . AOE . | . . . . . Terrain Rammed . | . . . . . Walls Destroyed . | . . . . . Machines Disabled . | . . . . . Actions | -11 -10 -10 -10 -8 --------- Run | Yrd Mat Min Sub Scr Total 1975 | 80 272 59 70 1494 Wait 44 | . 16 . 12 16 Move 1843 | 58 230 57 58 1440 Hop . | . . . . . Pick Up 27 | 8 7 1 . 11 Fast Attach 4 | . . . . 4 Attach 7 | 7 . . . . Detach . | . . . . . Swap 5 | . 1 . . 4 Drop 20 | . . 1 . 19 Fire 25 | 7 18 . . . Melee . | . . . . . Ram . | . . . . . Kick . | . . . . . Crush . | . . . . . Escape Stasis . | . . . . . Rewire . | . . . . . Trap . | . . . . . Miscellaneous . | . . . . . Route ------- -11/Scrapyard -10/Materials -10/Mines -10/Subcaves -8/Scraptown (discovered 1 exit: [*Fac]) History --------- Turn | Location | Event 5 | -11/Scrapyard | Discovered new exit (range 16) 94 | -11/Scrapyard | Entered Materials 215 | -10/Materials | Discovered new exit (range 11) 309 | -10/Materials | Build established: Mutant 447 | -10/Materials | Entered Mines 502 | -10/Mines | Discovered new exit (range 14) 517 | -10/Mines | Entered Subcaves 518 | -10/Subcaves | Approached by a straggling Scientist 520 | -10/Subcaves | Learned Materials garrison access intel 599 | -10/Subcaves | Entered Scraptown 770 | -8/Scraptown | Visited Cyclists 806 | -8/Scraptown | Visited Awakened 847 | -8/Scraptown | Visited Bundlers 1003 | -8/Scraptown | Visited The Evicted 1502 | -8/Scraptown | Visited CPS Storage 1525 | -8/Scraptown | Visited UFD Registry 1525 | -8/Scraptown | Registered with UFD as "Microrigger" 1674 | -8/Scraptown | Entered Cyclist Reading Room 1785 | -8/Scraptown | Visited LU-1G1's Boring Crew 1842 | -8/Scraptown | Visited Observation Area 1942 | -8/Scraptown | Discovered new exit (range 5) 1979 | -8/Scraptown | Found Scrap Suit 2049 | -8/Scraptown | Visited Botcube Research 2067 | -8/Scraptown | Found Botcube 2083 | -8/Scraptown | Visited Research Penetration Think Tank 2165 | -8/Scraptown | Met Optimus 2165 | -8/Scraptown | Accepted into 0bPrime 2342 | -8/Scraptown | Civil war broke out across Scraptown 2408 | -8/Scraptown | Core integrity fell below 50% 2413 | -8/Scraptown | Core integrity fell below 20% 2417 | -8/Scraptown | Destroyed by ON-WAF(p) with EM Pulse Gun Last Messages --------------- 02408_ Critical hit (Impale). 02408_ Flak Cannon destroyed. 02409_ Penetrated by Bolt. 02409_ Bolt penetrates E9-RPZ(x). 02409_ 6E-T9W(E) suffers critical hit (Burn). 02409_ Bolt penetrates 6E-T9W(E). 02409_ 6E-T9W(E) overheating. 02410_ 6E-T9W(E) heat short circuits Imp. Deuterium Engine. 02411_ 6E-T9W(E) suffers critical hit (Burn). 02411_ Penetrated by Bolt. 02412_ Bolt penetrates 6E-T9W(E). 02412_ 6E-T9W(E) destroyed. 02412_ Acquired 5 matter. 02414_ Bolt penetrates KG-V54(l). 02414_ Penetrated by Bolt. 02414_ Bolt penetrates Earth. 02416_ Ovr. Titanium Leg destroyed. 02416_ Penetrated by Bolt. [Achievement: This Is Interesting...] Map ----- +----------------------------------------------------+ | | | | | | | | | | | | | | | | | ?????????????????????????????????????????????????? | | ?????????????????????????????????????????????????? | | ?????????????????????????????????????????????????? | | ?????????????????????????????????????????????????? | | ?????????????????????????????????????????????????? | | ?????????????????????????????????????????????????? | | ?????????????????????????????????????????????????? | | ?????????????????????????????????????????????????? | | ?????????????????????????????????????????????????? | | ?????????????????????????????????????????????????? | | ?????????????????????????????????????????????????? | | ?????????????????????????????#####???????????????? | | ????????????????????????????##[!=#???????????????? | | #################???#######?#!=*%#???????????????? | | "##"""##""|## ##?## ##!###%!<%#???????????????? | | ##""!##"" ##![ ;;## =;=!j%=h=[##??????????????? | | %! =%!!xlpj![!=#??????????????? | | != !!@hj==*![[#??????????????? | | #############;;;;;## =%%!#######??????????????? | | ????????????####???## #;! ##????????????????????? | | ##########??????????# #;###?????????????????????? | | """""""""#??????????# ###???????????????????????? | | " "#??????????# #?????????????????????????? | | " """"" "#??????????# #?????????????????????????? | | " "???" "#??????????# #?????????????????????????? | | " "???" "#???##???### #?????????????????????????? | | " "???" "#???" ??" ?# #######"####??????????????? | | " "???" "#??? ""[ ?# #"""" ""#??????????????? | | " """"" "#???" [[["?# #""" ""#??????????????? | | " "#??" ??# #"" [ " #??????????????? | | "" #??? ??# #""" "#??????????????? | | #???? ???# # * "#??????????????? | | ### ######????# #???# ##%#########??????????????? | | ### ########### ##### ##!###########????????????? | | """ """"""""""" """"" ="%"##"""""""#????????????? | | !*["## """"""#????????????? | | !="## ""#????????????? | | !"## ""#????????????? | | "## ""#????????????? | | ! "#????????????? | | """"""""""""""""""""" !%= ## ""#????????????? | | """"""""""""""""""""" [ "## " """"#????????????? | +----------------------------------------------------+ Best States ------------- Heat Dissipation 25 Energy Generation 16 Energy Capacity 290 Matter Stores 300 Matter Capacity 300 Sight Range 16 Terrain Scan Density 10 Evasion (%) 55 Item Schematics ----------------- None Robot Schematics ------------------ None Fabricated ------------ Nothing Repaired ---------- Nothing Studied --------- None Alien Tech Used ----------------- None Achievements -------------- Bob, First Of His Name Civilization 2243 Deductive Reasoning Link The Feds This Is Interesting... Challenges ------------ None Game ------ Seed ArchitectRingRifle Manual? 0 Play Time 00:39:33 Cumulative 33.8 hours Start 2026.03.14 @ 08:35:04 End 2026.03.14 @ 09:26:11 Sessions 1 Manual Loads 0 Difficulty Rogue Special Mode None Game No. 74 Rogue 74 Adventurer 0 Explorer 0 Win Type - Total 0 Types 0/0/0/0/0/0/0/0/0/0 Lore% 28 Gallery% 29 Achievement% 19 Wizard Run 0 Options --------- Layout 2 ASCII 0 Keyboard 0 Movement Mouse Keybinds 0 Fullscreen 1 Font 24/Smallcaps Map View 50x49 Zoom Use 0% Tactical HUD 1 Map Filters NONE Filters NONE Steam 1 RUN: 0acea553-db3e-4dd8-bf39-636879fd0bd4